Cogmind - Beta 12 @@@ ROGUE MODE // 2023.07.10 @ 15:44:03 Player: Senator Honkstrong Result: Self-destructed Performance ------------- Evolutions (1) 500 Regions Visited (5) 1000 Robots Destroyed (87) 435 Value Destroyed (1575) 1575 Prototype IDs (37) 740 Alien Tech Used (0) 0 Bonus (-25) -25 TOTAL SCORE: 4225 Bonus ------- Follower Combat Kills 61 Aligned with FarCom 300 Friendly Fire -386 Cogmind --------- Core Integrity 39/400 Matter 157/300 Energy 70/100 System Corruption 0% Temperature Cool (0) Movement Core (600) Ox11 Location -9/Exiles Parts ------- > --- POWER (1) -------- (None) > --- PROPULSION (2) --- (None) > --- UTILITY (3) ------ 8R-AWN's Armor/EX > --- WEAPON (3) ------- Heavy Particle Cannon Light Assault Rifle Heavy Assault Rifle > --- INVENTORY (5) ---- AWS/Thermal Peak State ------------ > --- POWER ------------ (None) > --- PROPULSION ------- (None) > --- UTILITY ---------- 8R-AWN's Armor/EX > --- WEAPON ----------- Heavy Particle Cannon Light Assault Rifle Heavy Assault Rifle > --- INVENTORY -------- AWS/Thermal [Rating: 37] Favorites ----------- Power Heavy Ion Engine Engine Heavy Ion Engine Propulsion Light Treads Treads Light Treads Utility Medium Armor Plating Device Disposable Heat Sink Storage Large Storage Unit Processor Targeting Computer Hackware Hacking Suite Protection Medium Armor Plating Weapon Heavy Assault Rifle Energy Gun Medium Laser Energy Cannon Beam Cannon Ballistic Gun Heavy Assault Rifle Launcher Rocket Launcher Special Weapon Mining Laser Build | -11 -10 -10 -9 -9 -9 ------- Run | Jun Mat Min Mat Min Exi Slots Evolved 2 | . . . 2 . . Power . | . . . . . . Propulsion . | . . . . . . Utility 1 | . . . 1 . . Weapon 1 | . . . 1 . . Parts Attached 90 | 7 21 5 29 8 20 Power 9 | 1 4 1 2 1 . Engine 9 | 1 4 1 2 1 . Core . | . . . . . . Reactor . | . . . . . . Propulsion 15 | 2 3 2 4 2 2 Treads 15 | 2 3 2 4 2 2 Leg . | . . . . . . Wheel . | . . . . . . Hover . | . . . . . . Flight . | . . . . . . Utility 24 | 1 6 2 7 1 7 Device 7 | . 2 1 2 . 2 Storage 5 | 1 2 . 1 . 1 Processor 1 | . 1 . . . . Hackware 1 | . . 1 . . . Protection 10 | . 1 . 4 1 4 Artifact . | . . . . . . Weapon 42 | 3 8 . 16 4 11 Energy Gun 5 | 1 1 . 2 . 1 Energy Cannon 8 | . 1 . 6 . 1 Ballistic Gun 21 | 2 4 . 5 2 8 Ballistic Cannon . | . . . . . . Launcher 6 | . . . 3 2 1 Special Weapon 2 | . 2 . . . . Impact Weapon . | . . . . . . Slashing Weapon . | . . . . . . Piercing Weapon . | . . . . . . Special Melee Weapon . | . . . . . . Unidentified Prototypes 5 | . . . 4 . 1 Parts Lost 21 | . 1 2 5 1 12 Power 4 | . 1 1 . 1 1 Propulsion 5 | . . 1 1 . 3 Utility 6 | . . . 2 . 4 Weapon 6 | . . . 2 . 4 Highest Loss Streak 12 | . 1 1 2 1 12 To Critical Strikes 7 | . . . . . 7 Average Slot Usage (%) 96 | . 95 96 95 98 98 Engine 11 | . 14 13 11 9 10 Treads 22 | . 24 25 22 22 21 Device 2 | . 1 3 6 . 1 Storage 11 | . 14 14 11 11 11 Processor 1 | . 7 . . . . Protection 14 | . 5 10 12 21 19 Energy Gun 1 | . 5 . . . . Energy Cannon 6 | . 9 14 9 . . Ballistic Gun 22 | . 12 14 21 29 32 Naked Turns . | . . . . . . Heaviest Build 54 | 11 34 34 54 54 52 Greatest Support 40 | 40 40 40 40 40 40 Greatest Overweight (x) 10 | . 5 1 2 1 10 Average Overweight (x) . | . . . . 1 1 Largest Inventory Capacity 15 | 8 15 15 15 15 15 Average Capacity 14 | 7 13 15 15 15 14 Most Carried 15 | 1 15 15 15 15 15 Average Carried 13 | . 11 14 14 14 12 Final Capacity 15 | 8 15 15 15 15 5 Final Carried 15 | 1 15 14 13 14 2 Class Distribution -------------------- 55% | Tank 39% | Mutant 4% | Gunner Dominant Class ---------------- Mutant | -10/Materials Mutant | -10/Mines Tank | -9/Materials Tank | -9/Mines Tank | -9/Exiles Resources | -11 -10 -10 -9 -9 -9 ----------- Run | Jun Mat Min Mat Min Exi Matter Collected 2185 | 280 325 168 705 295 412 Remotely . | . . . . . . Salvage Created 2719 | 133 509 376 1125 454 122 Parts 183 | 8 43 14 71 45 2 Haulers Intercepted 7 | . 2 . 5 . . Recyclers Shooed 11 | 1 4 . 3 3 . Parts Field Recycled . | . . . . . . Retrieved Matter . | . . . . . . Parts Self-Destructed . | . . . . . . Prevented . | . . . . . . Kills | -11 -10 -10 -9 -9 -9 ------- Run | Jun Mat Min Mat Min Exi Combat Hostiles Destroyed 63 | . 12 6 25 14 6 Guns 37 | . 9 4 10 9 5 Cannons 8 | . 3 . 5 . . AOE 18 | . . 2 10 5 1 Classes Destroyed 11 | 2 5 . 3 . 1 Worker 2 | . 1 . . 1 . Builder 4 | . . . 3 1 . Tunneler 2 | 2 . . . . . Hauler 7 | . 2 . 5 . . Recycler 7 | 1 1 2 1 2 . Watcher 7 | . 3 . 4 . . Swarmer 30 | . 9 1 9 11 . Grunt 22 | . 3 5 11 3 . Duelist 1 | . . . 1 . . Sentry 4 | . . . 4 . . Assembled 6 | . . . . . 6 Best Kill Streak 8 | 2 4 2 6 8 5 Combat Bots Only 7 | . 3 2 6 7 5 Max Kills in Single Turn 5 | 1 1 2 5 3 2 Gunslinging 1 | . . . . 1 1 Exploded 4 | . . 2 4 3 1 Melee . | . . . . . . Uniques/NPCs Destroyed 1 | . . . . . 1 8R-AWN (-9/Exiles) Combat | -11 -10 -10 -9 -9 -9 -------- Run | Jun Mat Min Mat Min Exi Damage Taken 3493 | . 449 373 1011 269 1391 Core 515 | . 76 78 155 51 155 Absorbed by Shields . | . . . . . . Redirected to Shielding 39 | . 10 29 . . . Regen/Repaired (Parts) 44 | . . . 44 . . Core Remaining (%) 69 | 100 . 38 . . . Volleys Fired 267 | 10 92 34 61 23 47 Largest 3 | 2 2 1 3 3 3 Hottest 183 | 70 110 23 183 121 118 Shots Fired 583 | 20 182 34 172 57 118 Gun 444 | 20 121 34 108 50 111 Cannon 124 | . 59 . 58 2 5 Launcher 13 | . . . 6 5 2 Special 2 | . 2 . . . . Kinetic 383 | 10 70 34 108 50 111 Thermal 187 | 10 112 . 58 2 5 Explosive 13 | . . . 6 5 2 Electromagnetic . | . . . . . . Robot Hit Streak 17 | 6 7 17 11 10 13 Robot Miss Streak 8 | 1 3 2 8 4 3 Penetration Max . | . . . . . . Secondary Targets 5 | . . . . 2 3 Max Gunslinging Chain 2 | . . . . 1 2 Shots Hit Robots 325 | 14 56 24 111 29 91 Core Hits 140 | 4 24 12 50 22 28 Critical Kills 1 | . . 1 . . . Critical Parts Destroyed 2 | 1 . . 1 . . Critical Strikes 9 | 2 3 1 1 . 2 Burn 4 | 1 3 . . . . Destroy 5 | 1 . 1 1 . 2 Melee Attacks . | . . . . . . Impact . | . . . . . . Slashing . | . . . . . . Piercing . | . . . . . . Sneak Attacks . | . . . . . . Combat Hostiles . | . . . . . . Follow-up Attacks . | . . . . . . Damage Inflicted 6890 | 154 838 454 2944 829 1671 Guns 4139 | 154 656 368 1148 501 1312 Cannons 1277 | . 182 . 1018 27 50 Explosions 1438 | . . 62 771 296 309 Melee . | . . . . . . Ramming 36 | . . 24 7 5 . Kinetic 3762 | 40 393 368 1148 501 1312 Thermal 1716 | 114 445 62 1018 27 50 Explosive 1376 | . . . 771 296 309 Electromagnetic . | . . . . . . Impact . | . . . . . . Slashing . | . . . . . . Piercing . | . . . . . . Highest Corruption . | . . . . . . Average Corruption . | . . . . . . Corruption Purged . | . . . . . . Corruption Blocked . | . . . . . . Overload Shots . | . . . . . . Overflow Damage 86 | . . . 43 19 24 Projectiles 42 | . . . 35 7 . Explosions 44 | . . . 8 12 24 Melee . | . . . . . . Knockbacks . | . . . . . . Impact . | . . . . . . Kinetic . | . . . . . . Secondary . | . . . . . . Self-Inflicted Damage 48 | . . 41 7 . . Shots 2 | . . 1 1 . . Rammed 9 | . . 4 2 3 . Targets Rammed 11 | . . 5 3 3 . Kicked . | . . . . . . Crushed 2 | . . 1 1 . . Highest Temperature 380 | 120 324 19 380 107 230 Average Temperature 93 | 50 89 5 103 36 117 Received Heat Transfer 606 | . 42 192 348 24 . Effects 5 | . 1 . 1 . 3 Energy Bleed 1 | . . . 1 . . Interference 3 | . . . . . 3 Short Circuit 1 | . 1 . . . . Siege Activations . | . . . . . . Robots Corrupted . | . . . . . . Combat Hostiles . | . . . . . . Parts Fried . | . . . . . . Impact Corruptions . | . . . . . . Robots Melted . | . . . . . . Combat Hostiles . | . . . . . . Parts Melted 8 | . 3 . 5 . . Heat Transferred 3374 | 407 1332 100 1480 37 18 Parts Sabotaged . | . . . . . . Parts Stolen . | . . . . . . Parts Stripped . | . . . . . . Power Chain Reactions . | . . . . . . Missiles Intercepted . | . . . . . . Alert | -11 -10 -10 -9 -9 -9 ------- Run | Jun Mat Min Mat Min Exi Peak Influence 355 | 15 112 208 355 215 . Initial 22 | . 9 3 22 7 . Average 83 | 6 30 73 138 69 . Maximum Alert Level 1 | . . 1 1 1 . Low Security (%) 82 | 100 100 98 60 87 . Level 1 17 | . . 1 39 12 . Level 2 . | . . . . . . Level 3 . | . . . . . . Level 4 . | . . . . . . Level 5 . | . . . . . . High Security . | . . . . . . Max Security . | . . . . . . Squads Dispatched 3 | . 1 . 1 1 . Investigation 1 | . . . 1 . . Extermination . | . . . . . . Reinforcement 2 | . 1 . . 1 . Assault . | . . . . . . Garrison . | . . . . . . Intercept . | . . . . . . Searches Triggered . | . . . . . . Construction Impeded 1 | . . . . 1 . Haulers Reinforced . | . . . . . . Active Scanning Responses . | . . . . . . Cargo Convoy Interrupts . | . . . . . . Stealth | -11 -10 -10 -9 -9 -9 --------- Run | Jun Mat Min Mat Min Exi Distress Signals 2 | . . . 2 . . Communications Jammed . | . . . . . . Distress Signals . | . . . . . . Times Spotted 88 | . 18 8 39 15 8 Peak Tracking Total 10 | . 3 3 6 3 10 Tactical Retreats 4 | . . 3 . . 1 Traps | -11 -10 -10 -9 -9 -9 ------- Run | Jun Mat Min Mat Min Exi Traps Triggered 5 | . 3 2 . . . Indirectly . | . . . . . . Trap Hack Attempts . | . . . . . . Triggered . | . . . . . . Disarmed . | . . . . . . Reprogrammed . | . . . . . . Reused . | . . . . . . Traps Extracted 5 | . . 5 . . . Installed . | . . . . . . Triggered . | . . . . . . Most Traps Carried 5 | . . 4 5 5 5 Machines | -11 -10 -10 -9 -9 -9 ---------- Run | Jun Mat Min Mat Min Exi Machines Disabled 6 | . . 1 2 . 3 Max in Single Turn 2 | . . 1 2 . 1 Machines Repaired . | . . . . . . Machines Sabotaged . | . . . . . . Overloaded Fab Kills . | . . . . . . Hacking | -11 -10 -10 -9 -9 -9 --------- Run | Jun Mat Min Mat Min Exi Machines Accessed 26 | . 9 2 14 . 1 Terminals 19 | . 7 1 11 . . Fabricators . | . . . . . . Repair Stations 1 | . . . 1 . . Recycling Units 2 | . 2 . . . . Scanalyzers 2 | . . . 2 . . Garrison Access . | . . . . . . Total Hacks 87 | . 27 2 57 . 1 Successful 46 | . 15 1 29 . 1 Failed 40 | . 12 1 27 . . Catastrophic 7 | . 2 1 4 . . Database Lockouts 1 | . . . 1 . . Manual 40 | . 18 1 20 . 1 Terminals 64 | . 24 1 39 . . Fabricators . | . . . . . . Repair Stations 8 | . . . 8 . . Recycling Units 3 | . 3 . . . . Scanalyzers 10 | . . . 10 . . Garrison Access . | . . . . . . Terminal Hacks 27 | . 11 1 14 . 1 Robot Analysis 6 | . 5 . 1 . . Prototype ID Bank 7 | . 1 . 6 . . Open Door 1 | . . 1 . . . Unreport Threat 4 | . 1 . 3 . . Locate Traps 8 | . 4 . 4 . . EX-Prototype ID Bank 1 | . . . . . 1 Fabricator Hacks . | . . . . . . Repair Station Hacks 5 | . . . 5 . . Scan Component 3 | . . . 3 . . Repair 2 | . . . 2 . . Recycling Unit Hacks 1 | . 1 . . . . Retrieve Components 1 | . 1 . . . . Scanalyzer 8 | . . . 8 . . Insert Component 4 | . . . 4 . . Analyze 4 | . . . 4 . . Garrison Access Hacks . | . . . . . . Unauthorized Hacks 5 | . 3 . 2 . . Terminals 5 | . 3 . 2 . . Botnet 5 | . 3 . 2 . . Fabricators . | . . . . . . Repair Stations . | . . . . . . Recycling Units . | . . . . . . Scanalyzers . | . . . . . . Garrison Access . | . . . . . . Data Cores Recovered . | . . . . . . Used . | . . . . . . Hacking Detections 24 | . 9 1 14 . . Full Trace Events 1 | . . . 1 . . Feedback Events . | . . . . . . Feedback Blocked . | . . . . . . Robot Schematics Acquired . | . . . . . . Robots Built . | . . . . . . Authchips . | . . . . . . Time . | . . . . . . Total Robot Build Rating . | . . . . . . Part Schematics Acquired 3 | . . . 3 . . Parts Built . | . . . . . . Authchips . | . . . . . . Time . | . . . . . . Total Part Build Rating . | . . . . . . Parts Repaired 2 | . . . 2 . . Time 180 | . . . 180 . . Parts Recycled . | . . . . . . Recycled Matter . | . . . . . . Retrieved Matter . | . . . . . . Retrieved Components 9 | . 9 . . . . Parts Scanalyzed 3 | . . . 3 . . Part Schematics Acquired 3 | . . . 3 . . Parts Damaged . | . . . . . . Bothacking | -11 -10 -10 -9 -9 -9 ------------ Run | Jun Mat Min Mat Min Exi Used RIF Installer . | . . . . . . Robots Hacked . | . . . . . . Non-combat . | . . . . . . Combat . | . . . . . . Robot Hacks Applied . | . . . . . . Relay Couplers Released . | . . . . . . Fabnet Peak Effective % . | . . . . . . Robots Rewired . | . . . . . . Allies Hacked . | . . . . . . Hacks Repelled . | . . . . . . Allies | -11 -10 -10 -9 -9 -9 -------- Run | Jun Mat Min Mat Min Exi Total Allies 4 | . . 3 . 1 . Largest Group 3 | . . 3 3 1 . Highest-Rated Group 40 | . . 40 40 31 . Highest-Rated Ally 31 | . . 16 16 31 . Total Orders 2 | . . 2 . . . STAY 1 | . . 1 . . . FOLLOW 1 | . . 1 . . . Ally Attacks 24 | . . 5 19 . . Total Damage 253 | . . 44 209 . . Kills 6 | . . 2 4 . . Allies Corrupted . | . . . . . . Allies Melted . | . . . . . . Intel | -11 -10 -10 -9 -9 -9 ------- Run | Jun Mat Min Mat Min Exi Robot Analysis Total 6 | . 5 . 1 . . Derelict Logs Recovered 2 | . . 1 . 1 . Drone Launches . | . . . . . . Drone Recoveries . | . . . . . . Exploration | -11 -10 -10 -9 -9 -9 ------------- Run | Jun Mat Min Mat Min Exi Turns Passed 11008 | 118 2201 1197 3034 1907 2551 Spaces Moved 4388 | 53 983 611 1088 739 914 Core 13 | 5 3 . . . 5 Treads 4375 | 48 980 611 1088 739 909 Legs . | . . . . . . Wheels . | . . . . . . Hover . | . . . . . . Flight . | . . . . . . Fastest Speed 50 | 50 160 160 160 240 240 Average Speed 209 | 149 162 167 229 240 241 Slowest Speed 550 | 160 300 240 320 240 550 Overloaded Moves . | . . . . . . Propulsion Burnouts . | . . . . . . Robots Hopped . | . . . . . . Cave-ins Triggered . | . . . . . . Exploration Rate (%) 73 | 3 97 98 86 96 62 Regions Visited 5 Branch Regions 3 Pre-discovered Areas 1 | . . 1 . . . Known Exits Taken 1 | . . . . 1 . Unknown Exits Taken 4 | 1 1 1 1 . . Scrap Searched 2 | . . 1 . 1 . Spaces Dug 2 | . 2 . . . . Terrain Destroyed 136 | . 2 13 42 57 22 Melee . | . . . . . . Projectile 17 | . 2 . 11 1 3 AOE 119 | . . 13 31 56 19 Terrain Rammed . | . . . . . . Walls Destroyed . | . . . . . . Machines Disabled . | . . . . . . Actions | -11 -10 -10 -9 -9 -9 --------- Run | Jun Mat Min Mat Min Exi Total 5725 | 70 1402 750 1504 821 1178 Wait 799 | . 271 81 262 41 144 Move 4383 | 52 982 610 1087 738 914 Hop . | . . . . . . Pick Up 87 | 1 23 8 28 4 23 Fast Attach 16 | 6 2 2 6 . . Attach 31 | . 5 2 7 1 16 Detach 5 | . . . . . 5 Swap 44 | 1 14 1 17 7 4 Drop 82 | . 13 7 33 4 25 Fire 267 | 10 92 34 61 23 47 Melee . | . . . . . . Ram . | . . . . . . Kick . | . . . . . . Crush 11 | . . 5 3 3 . Escape Stasis . | . . . . . . Rewire . | . . . . . . Trap . | . . . . . . Miscellaneous . | . . . . . . Route ------- -11/Junkyard -10/Materials (discovered 5 exits: *Mat x3 / *Min x2) -10/Mines (discovered 2 exits: *Mat x2) -9/Materials (discovered 4 exits: [*Mat x3] / [*Min]) -9/Mines (discovered 4 exits: [*Mat x2] / *Exi / [*Zio]) -9/Exiles (discovered 1 exit: [*Min]) History --------- Turn | Location | Event 2 | -11/Junkyard | Met Revision 17 35 | -11/Junkyard | Discovered new exit (range 16) 119 | -11/Junkyard | Entered Materials 309 | -10/Materials | Build established: Mutant 478 | -10/Materials | Discovered new exit (range 10) 887 | -10/Materials | Discovered new exit (range 12) 1495 | -10/Materials | Discovered new exit (range 16) 1876 | -10/Materials | Discovered new exit (range 3) 2101 | -10/Materials | Discovered new exit (range 7) 2320 | -10/Materials | Entered Mines 2388 | -10/Mines | Met a Derelict bent on vengeance 2451 | -10/Mines | Discovered new exit (range 8) 2557 | -10/Mines | Discovered new exit (range 12) 2614 | -10/Mines | Learned location of Storage (-7) 2718 | -10/Mines | Found a damaged Exp. Sensor Array with a note attached 2721 | -10/Mines | Found Prototype Device 2737 | -10/Mines | Core integrity fell below 50% 3060 | -10/Mines | Assisted by bots powering up and referring to "LRC-V3" 3216 | -10/Mines | Met a Derelict who couldn't figure out how to use a Trap Extractor 3517 | -10/Mines | Entered Materials 3517 | -9/Materials | Accompanied by 3 allies 3517 | -9/Materials | Evolved 2 slots: Utility x1, Weapon x1 4101 | -9/Materials | Discovered new exit (range 16) 4113 | -9/Materials | Build established: Tank 4465 | -9/Materials | Identified Exp. Sensor Array 4484 | -9/Materials | Discovered new exit (range 10) 4738 | -9/Materials | Discovered new exit (range 7) 4939 | -9/Materials | Repaired Broken Exp. Sensor Array 5580 | -9/Materials | Build established: Mutant 5746 | -9/Materials | Central database locked down 5846 | -9/Materials | Discovered new exit (range 11) 6006 | -9/Materials | Build established: Tank 6038 | -9/Materials | Repaired Broken Rocket Launcher 6551 | -9/Materials | Entered Mines 6568 | -9/Mines | Core integrity fell below 50% 6580 | -9/Mines | Build established: Mutant 6658 | -9/Mines | Assembled infested the area 6694 | -9/Mines | Discovered new exit (range 7) 6699 | -9/Mines | Discovered new exit (range 9) 6928 | -9/Mines | Identified exit to Exiles 6956 | -9/Mines | Build established: Tank 6982 | -9/Mines | Received a Rocket Launcher from a helpful Derelict 7165 | -9/Mines | Received a Mining Laser from a helpful Derelict 7490 | -9/Mines | Deemed a non-threat by the Exiles lab entrance 7868 | -9/Mines | A Derelict revealed a hidden shortcut to a safe place 7942 | -9/Mines | Destroyed 7 combat bots 8102 | -9/Mines | Joined a pair of Derelicts in attacking an 0b10 outpost 8458 | -9/Mines | Entered Exiles 8516 | -9/Exiles | Met 8R-AWN 8559 | -9/Exiles | Met EX-HEX 8631 | -9/Exiles | Met EX-BIN 8665 | -9/Exiles | Aligned with FarCom system 8667 | -9/Exiles | Given EX-Vault access code 8722 | -9/Exiles | Opened EX-Vault 8740 | -9/Exiles | Found AWS/Thermal 8902 | -9/Exiles | Warned to stay clear of 0b10 Research branches 9348 | -9/Exiles | Discovered new exit (range 14) 9525 | -9/Exiles | Met EX-DEC 10189 | -9/Exiles | Found AWS/Gauss 10193 | -9/Exiles | Found Skeleton Box 10824 | -9/Exiles | Attacked by the Exiles 10920 | -9/Exiles | Core integrity fell below 20% 10974 | -9/Exiles | Destroyed 8R-AWN 10994 | -9/Exiles | Found Prototype Processor 11001 | -9/Exiles | Lost 12 parts (1p3n4u4w) 11006 | -9/Exiles | Found Prototype Protection 11008 | -9/Exiles | Identified 8R-AWN's Armor/EX 11009 | -9/Exiles | Self-destructed Last Messages --------------- 10944_ Penetrated by HV Slug. 10944_ Critical hit (Destroy). 10944_ Hvy. Assault Rifle destroyed. 10944_ Penetrated by HV Slug. 10944_ Critical hit (Destroy). 10944_ Hvy. Ion Engine destroyed. 10948_ Penetrated by HV Slug. 10961_ HV Slug penetrates Wall. 10961_ Penetrated by HV Slug. 10967_ The unstable cave ceiling collapses. 10970_ Penetrated by HV Slug. 10970_ Lgt. Treads destroyed. 10974_ Penetrated by HV Slug. 10974_ 8R-AWN destroyed. 10983_ Acquired 102 matter. 10994_ Acquired Prototype Processor. 11006_ Acquired Prototype Protection. 11007_ Dropped Lrg. Storage Unit. 11007_ Dropped Disposable Heat Sink. 11008_ Identified 8R-AWN's Armor/EX. Map ----- +----------------------------------------------------+ | """#????????????????????????????????????? | | """#????????????????????????????????????? | | """#????????????????????????????????????? | | """##???????????????????????????????????? | | """""???????????????????????????????????? | | """##???????????????????????????????????? | | "X" """""???????????????????????????????????? | | """ #????????????????????????????????????? | | """""""""#????????????????????????????????????? | | ###########????????????????????????????????????? | | #??????????????????????????????????????????????? | | #??????????????????????????????????????????????? | | ##?????????????????????????????????????????????? | | ##???####"######??????????????????????????????? | | #####"""" """"##?????????????????????????????? | | " """ """"##????????????????????????????? | | " " #????????????????????????????? | | """#????????????????????????????? | | "#???????????#####????????????? | | " "##?????????##" #????????????? | | "###???????#" #????????????? | | ""#??????##"& ##???????????? | | "" "###??### &&& ###????????## | | ###""" ;;#??# ########## | | ??##""" !![#### & #""""## | | ???#"""" %!!@## | | ???#"" !=] ## | | ??#"""" ! #### | | ?"" ""#?#"""""#### | | " ;"""##?#######??#### | | ;#####??????????????#### | | ###?????????????????????? | | " ##???????????????????????? | | "" """ % ""#????????????????????????? | | ##""" " " ""#" % ##????????????????????????? | | ??####""" """# #?????????????????????????? | | ?????###""""### ??????????????????????????? | | ???????####???#### # #??????????????????????????? | | ????????????????? ##???????????????????????????? | | ????????????????##???????????????????????????????? | | ?????????????????????????????????????????????????? | | ?????????????????????????????????????????????????? | | ?????????????????????????????????????????????????? | | ?????????????????????????????????????????????????? | | ?????????????????????????????????????????????????? | | ?????????????????????????????????????????????????? | | ?????????????????????????????????????????????????? | | ?????????????????????????????????????????????????? | | ?????????????????????????????????????????????????? | | ?????????????????????????????????????????????????? | +----------------------------------------------------+ Best States ------------- Heat Dissipation 28 Coolant Potential 50 Energy Generation 14 Energy Capacity 280 Matter Stores 300 Matter Capacity 300 Sight Range 16 Robot Scan Range 14 Terrain Scan Density 10 Armor Coverage 450 Propulsion Shielding 33 Evasion (%) 40 Targeting Accuracy 5 Recoil Reduction 2 Trap Extractor Capacity 6 Item Schematics ----------------- Exp. Sensor Array | -9/Materials | Scanalyzed Lgt. Treads | -9/Materials | Scanalyzed Med. Armor Plating | -9/Materials | Scanalyzed Robot Schematics ------------------ None Fabricated ------------ Nothing Alien Tech Used ----------------- None Achievements -------------- None Challenges ------------ None Game ------ Seed FocalCoolingStreamer Manual? 0 Play Time 01:06:24 Cumulative 32.9 hours Start 2023.07.10 @ 14:36:50 End 2023.07.10 @ 15:44:03 Sessions 1 Manual Loads 0 Difficulty Rogue Special Mode None Game No. 23 Rogue 23 Adventurer 0 Explorer 0 Win Type - Total 0 Types 0/0/0/0/0/0/0/0/0 Lore% 25 Gallery% 28 Achievement% 28 Wizard Run 0 Options --------- ASCII 0 Keyboard 0 Movement Mouse Keybinds 0 Fullscreen 1 Font 18/SmallcapsGlow Map View 76x50 Tactical HUD 1 Map Filters NONE Filters NONE Steam X RUN: f22f216c-0b45-4f16-9361-1d063fa649e9